fUSD/lending_fUSD_20240725
["ID","MTS","AMOUNT","RATE_DAILY","PERIOD"]
[333175351,1721920233265,-3644.0,0.00010487,2]
[333175352,1721920233274,-20156.933,0.00010534,2]
[333175353,1721920233283,-338.605,0.00010534,2]
[333175354,1721920233293,-5828.0,0.00010534,2]
[333175355,1721920233303,-5121.0,0.00010534,2]
[333175356,1721920233312,-2393.24468,0.0001059,2]
[333175357,1721920233322,-96929.6147,0.00010599,2]
[333175358,1721920233332,-1531.796945,0.000106,2]
[333175359,1721920233341,-48725.1704,0.000106,2]
[333175360,1721920233351,-6225.9273,0.000106,2]
[333175361,1721920233360,-13388.9337,0.000106,2]
[333175362,1721920233369,-382.2977,0.000106,2]
[333175363,1721920233379,-352.43506566,0.000106,2]
[333175364,1721920233389,-7500.0,0.000106,2]
[333175365,1721920233398,-166.85942541,0.000106,2]
[333175366,1721920233407,-317.37,0.00010603,3]
[333175367,1721920233417,-500.0,0.00010614,2]
[333175368,1721920233427,-210.0,0.0001065,2]
[333175369,1721920233436,-352.43506564,0.00010674,2]
[333175370,1721920233446,-500.0,0.00010684,2]
[333175371,1721920233456,-2300.0,0.00010684,2]
[333175372,1721920233467,-2000.0,0.00010684,2]
[333175373,1721920233477,-5981.6493,0.00010685,2]
[333175374,1721920233486,-150.01,0.00010699,2]
[333175375,1721920233497,-3787.4941211,0.00010699,2]
[333175376,1721920233506,-219688.20868744,0.000107,2]
[333175377,1721920233518,-484.55762474,0.000107,2]
[333175379,1721920233529,-20936.87667124,0.000107,2]
[333175380,1721920233974,-6107.10310454,0.000107,2]
[333175381,1721920233986,-6075.0,0.000107,2]
[333175382,1721920233997,-700.0,0.000107,2]
[333175389,1721920238465,-169.5830375,0.00010697,2]
[333175390,1721920238474,-6336.6802766,0.000107,2]
[333175391,1721920239332,-2666.15956312,0.00010699,2]
[333175392,1721920239344,-1121.33455798,0.00010699,2]
[333175393,1721920239354,-223356.87775587,0.000107,2]
[333175394,1721920239363,-150.0,0.000107,2]
[333175395,1721920239373,-150.0,0.000107,2]
[333175396,1721920239382,-150.0,0.000107,2]
[333175397,1721920239391,-2000.0,0.000107,2]
[333175398,1721920239401,-150.0,0.000107,2]
[333175399,1721920239410,-200.0,0.000107,2]
[333175400,1721920239419,-150.0,0.000107,2]
[333175401,1721920239429,-150.0,0.000107,2]
[333175402,1721920239439,-150.0,0.000107,2]
[333175403,1721920239448,-150.0,0.000107,2]
[333175404,1721920239459,-150.0,0.000107,2]
[333175405,1721920239468,-150.0,0.000107,2]
[333175406,1721920239477,-150.0,0.000107,2]
[333175407,1721920239487,-150.0,0.000107,2]
[333175408,1721920239496,-150.0,0.000107,2]
[333175409,1721920239505,-2000.0,0.000107,2]
[333175410,1721920239515,-200.0,0.000107,2]
[333175411,1721920239524,-150.0,0.000107,2]
[333175412,1721920239534,-150.0,0.000107,2]
[333175414,1721920239543,-150.0,0.000107,2]
[333175416,1721920239552,-150.0,0.000107,2]
[333175418,1721920239562,-2000.0,0.000107,2]
[333175420,1721920239572,-200.0,0.000107,2]
[333175423,1721920239581,-1500.0,0.00010741,2]
[333175425,1721920239591,-352.43506564,0.00010749,2]
[333175427,1721920239600,-1500.0,0.00010777,2]
[333175429,1721920239610,-200.0,0.00010786,2]
[333175431,1721920239622,-300.0,0.00010796,2]
[333175433,1721920239631,-150.0,0.000108,2]
[333175435,1721920239641,-150.0,0.000108,2]
[333175437,1721920239651,-150.0,0.000108,2]
[333175439,1721920239661,-202.37731208,0.000108,4]
[333175441,1721920239671,-2000.0,0.00010807,2]
[333175443,1721920239681,-200.0,0.00010807,2]
[333175445,1721920239690,-2000.0,0.00010807,2]
[333175446,1721920239701,-200.0,0.00010807,2]
[333175448,1721920239712,-2000.0,0.00010807,2]
[333175450,1721920239721,-200.0,0.00010807,2]
[333175452,1721920239730,-150.0,0.00010815,2]
[333175454,1721920239739,-352.43506564,0.00010823,2]
[333175456,1721920239751,-165.33891119,0.00010858,2]
[333175458,1721920239761,-179.77556321,0.00010858,2]
[333175460,1721920239771,-17926.03910712,0.0001088,2]
[333175462,1721920239780,-171.90998522,0.00010897,2]
[333175464,1721920239790,-352.43506564,0.00010897,2]
[333175466,1721920239799,-171.90998522,0.00010898,2]
[333175468,1721920239809,-171.90998522,0.00010899,2]
[333175470,1721920239819,-5877.22181657,0.000109,2]
[333175471,1721920239828,-150.0,0.000109,2]
[333175472,1721920239838,-171.90998522,0.000109,2]
[333175473,1721920239849,-1105.74541286,0.000109,2]
[333175474,1721920239858,-546.23431098,0.000109,2]
[333175475,1721920239868,-2133.42240534,0.000109,2]
[333175476,1721920239879,-161.99713113,0.000109,2]
[333175477,1721920239888,-161.99713113,0.000109,2]
[333175478,1721920239898,-1000.0,0.00010904,2]
[333175479,1721920239907,-2000.0,0.00010915,2]
[333175480,1721920239917,-200.0,0.00010915,2]
[333175481,1721920239927,-2000.0,0.00010915,2]
[333175482,1721920239936,-200.0,0.00010915,2]
[333175483,1721920239945,-2000.0,0.00010915,2]
[333175484,1721920239954,-200.0,0.00010915,2]
[333175485,1721920239967,-268.52906281,0.00010958,2]
[333175486,1721920239976,-500.0,0.00010958,2]
[333175488,1721920239986,-500.0,0.00010958,2]
[333175489,1721920239995,-500.0,0.00010958,2]
[333175490,1721920240005,-500.0,0.00010958,2]
[333175491,1721920240014,-500.0,0.00010958,2]
[333175492,1721920240024,-500.0,0.00010958,2]
[333175493,1721920240033,-500.0,0.00010958,2]
[333175494,1721920240043,-500.0,0.00010958,2]
[333175495,1721920240052,-500.0,0.00010958,2]
[333175496,1721920240062,-500.0,0.00010958,2]
[333175497,1721920240071,-500.0,0.00010958,2]
[333175498,1721920240081,-500.0,0.00010958,2]
[333175499,1721920240091,-500.0,0.00010958,2]
[333175500,1721920240101,-500.0,0.00010958,2]
[333175501,1721920240110,-189.37,0.00010958,2]
[333175502,1721920240120,-397.6459235,0.00010958,2]
[333175503,1721920240130,-441.7172048,0.00010958,2]
[333175504,1721920240140,-609.34757794,0.00010958,2]
[333175505,1721920240149,-500.0,0.00010958,2]
[333175506,1721920240159,-500.0,0.00010958,2]
[333175507,1721920240168,-500.0,0.00010958,2]
[333175509,1721920240178,-500.0,0.00010958,2]
[333175511,1721920240187,-579.67,0.00010958,2]
[333175512,1721920240196,-500.0,0.00010958,2]
[333175513,1721920240206,-500.0,0.00010958,2]
[333175514,1721920240216,-500.0,0.00010958,2]
[333175515,1721920240226,-500.0,0.00010958,2]
[333175516,1721920240235,-500.0,0.00010958,2]
[333175517,1721920240246,-293.34,0.00010958,2]
[333175518,1721920240255,-500.0,0.00010958,2]
[333175519,1721920240264,-500.0,0.00010958,2]
[333175520,1721920240273,-500.0,0.00010958,2]
[333175521,1721920240283,-500.0,0.00010958,2]
[333175522,1721920240292,-326.55,0.00010958,2]
[333175523,1721920240301,-500.0,0.00010958,2]
[333175524,1721920240310,-500.0,0.00010958,2]
[333175525,1721920240319,-289.1806732,0.00010958,2]
[333175526,1721920240330,-540.72,0.00010958,2]
[333175527,1721920240339,-584.09,0.00010958,2]
[333175528,1721920240348,-438.89,0.00010958,2]
[333175529,1721920240357,-500.0,0.00010958,2]
[333175530,1721920240367,-170.38738856,0.00010958,2]
[333175531,1721920240376,-500.0,0.00010958,2]
[333175532,1721920240385,-566.33665292,0.00010958,2]
[333175533,1721920240394,-500.0,0.00010958,2]
[333175534,1721920240403,-500.0,0.00010958,2]
[333175535,1721920240413,-500.0,0.00010958,2]
[333175536,1721920240422,-639.19131007,0.00010958,2]
[333175537,1721920240431,-341.83431024,0.00010958,2]
[333175538,1721920240440,-500.0,0.00010958,2]
[333175540,1721920240450,-238.40474325,0.00010958,2]
[333175541,1721920240460,-500.0,0.00010958,2]
[333175543,1721920240470,-500.0,0.00010958,2]
[333175544,1721920240480,-367.0963625,0.00010958,2]
[333175545,1721920240489,-500.0,0.00010958,2]
[333175546,1721920240500,-337.41,0.00010958,2]
[333175547,1721920240510,-500.0,0.00010958,2]
[333175548,1721920240519,-287.01,0.00010958,2]
[333175549,1721920240528,-500.0,0.00010958,2]
[333175550,1721920240538,-500.0,0.00010958,2]
[333175551,1721920240547,-500.0,0.00010958,2]
[333175552,1721920240556,-500.0,0.00010958,2]
[333175553,1721920240566,-500.0,0.00010958,2]
[333175554,1721920240575,-500.0,0.00010958,2]
[333175555,1721920240585,-500.0,0.00010958,2]
[333175556,1721920240594,-500.0,0.00010958,2]
[333175557,1721920240604,-646.66,0.00010958,2]
[333175558,1721920240616,-592.49,0.00010958,2]
[333175559,1721920240626,-500.0,0.00010958,2]
[333175560,1721920240635,-208.42,0.00010958,2]
[333175561,1721920240644,-517.97,0.00010958,2]
[333175562,1721920240654,-500.0,0.00010958,2]
[333175563,1721920240664,-500.0,0.00010958,2]
[333175564,1721920240674,-500.0,0.00010958,2]
[333175565,1721920240683,-500.0,0.00010958,2]
[333175566,1721920240694,-328.27,0.00010958,2]
[333175567,1721920240703,-500.0,0.00010958,2]
[333175568,1721920240714,-198.11,0.00010958,2]
[333175569,1721920240723,-500.0,0.00010958,2]
[333175570,1721920240732,-500.0,0.00010958,2]
[333175571,1721920240742,-500.0,0.00010958,2]
[333175572,1721920240751,-500.0,0.00010958,2]
[333175573,1721920240760,-500.0,0.00010958,2]
[333175574,1721920240770,-500.0,0.00010958,2]
[333175575,1721920240779,-500.0,0.00010958,2]
[333175576,1721920240789,-500.0,0.00010958,2]
[333175577,1721920240798,-500.0,0.00010958,2]
[333175578,1721920240807,-500.0,0.00010958,2]
[333175579,1721920240818,-500.0,0.00010958,2]
[333175580,1721920240829,-535.16,0.00010958,2]
[333175581,1721920240839,-500.0,0.00010958,2]
[333175582,1721920240849,-503.32792639,0.00010958,2]
[333175583,1721920240859,-500.0,0.00010958,2]
[333175584,1721920240868,-500.0,0.00010958,2]
[333175585,1721920240877,-500.0,0.00010958,2]
[333175586,1721920240888,-500.0,0.00010958,2]
[333175587,1721920240897,-500.0,0.00010958,2]
[333175588,1721920240907,-500.0,0.00010958,2]
[333175589,1721920240917,-500.0,0.00010958,2]
[333175590,1721920240927,-500.0,0.00010958,2]
[333175591,1721920240938,-500.0,0.00010958,2]
[333175592,1721920240948,-500.0,0.00010958,2]
[333175593,1721920240958,-500.0,0.00010958,2]
[333175594,1721920240967,-167.40068871,0.00010958,2]
[333175595,1721920240976,-500.0,0.00010958,2]
[333175596,1721920240986,-500.0,0.00010958,2]
[333175597,1721920240997,-500.0,0.00010958,2]
[333175598,1721920241006,-570.68076811,0.00010958,2]
[333175599,1721920241015,-350.28635052,0.00010958,2]
[333175611,1721920241195,-408.18477434,0.00010958,2]
[333175613,1721920241206,-500.0,0.00010958,2]
[333175615,1721920241216,-188.47,0.00010958,2]
[333175617,1721920241225,-500.0,0.00010958,2]
[333175619,1721920241234,-500.0,0.00010958,2]
[333175620,1721920241244,-315.92,0.00010958,2]
[333175621,1721920241253,-500.0,0.00010958,2]
[333175622,1721920241263,-500.0,0.00010958,2]
[333175623,1721920241274,-500.0,0.00010958,2]
[333175624,1721920241284,-500.0,0.00010958,2]
[333175625,1721920241293,-500.0,0.00010958,2]
[333175626,1721920241303,-500.0,0.00010958,2]
[333175627,1721920241314,-419.52998,0.00010958,2]
[333175628,1721920241323,-529.91638382,0.00010958,2]
[333175629,1721920241333,-500.0,0.00010958,2]
[333175630,1721920241342,-500.0,0.00010958,2]
[333175631,1721920241353,-500.0,0.00010958,2]
[333175632,1721920241361,-500.0,0.00010958,2]
[333175633,1721920241370,-500.0,0.00010958,2]
[333175634,1721920241380,-500.0,0.00010958,2]
[333175635,1721920241389,-500.0,0.00010958,2]
[333175637,1721920241398,-500.0,0.00010958,2]
[333175639,1721920241407,-500.0,0.00010958,2]
[333175641,1721920241417,-500.0,0.00010958,2]
[333175643,1721920241427,-500.0,0.00010958,2]
[333175645,1721920241439,-500.0,0.00010958,2]
[333175647,1721920241448,-508.80207817,0.00010958,2]
[333175649,1721920241458,-506.76319784,0.00010958,2]
[333175651,1721920241468,-500.0,0.00010958,2]
[333175653,1721920241477,-500.0,0.00010958,2]
[333175655,1721920241486,-500.0,0.00010958,2]
[333175657,1721920241496,-500.0,0.00010958,2]
[333175659,1721920241505,-260.06,0.00010958,2]
[333175661,1721920241514,-500.0,0.00010958,2]
[333175663,1721920241523,-500.0,0.00010958,2]
[333175665,1721920241532,-500.0,0.00010958,2]
[333175667,1721920241541,-500.0,0.00010958,2]
[333175668,1721920241551,-500.0,0.00010958,2]
[333175671,1721920241561,-458.18043189,0.00010958,2]
[333175673,1721920241570,-503.59230164,0.00010958,2]
[333175674,1721920241579,-500.0,0.00010958,2]
[333175677,1721920241590,-500.0,0.00010958,2]
[333175679,1721920241602,-500.0,0.00010958,2]
[333175681,1721920241612,-500.0,0.00010958,2]
[333175683,1721920241625,-500.0,0.00010958,2]
[333175685,1721920241635,-500.0,0.00010958,2]
[333175687,1721920241644,-500.0,0.00010958,2]
[333175689,1721920241654,-213.89192235,0.00010958,2]
[333175691,1721920241663,-500.0,0.00010958,2]
[333175693,1721920241673,-500.0,0.00010958,2]
[333175695,1721920241682,-500.0,0.00010958,2]
[333175697,1721920241692,-500.0,0.00010958,2]
[333175699,1721920241702,-509.65265901,0.00010958,2]
[333175701,1721920241713,-490.43286906,0.00010958,2]
[333175703,1721920241722,-500.0,0.00010958,2]
[333175705,1721920241732,-500.0,0.00010958,2]
[333175707,1721920241741,-500.0,0.00010958,2]
[333175709,1721920241751,-500.0,0.00010958,2]
[333175710,1721920241760,-618.51,0.00010958,2]
[333175712,1721920241769,-500.0,0.00010958,2]
[333175714,1721920241779,-500.0,0.00010958,2]
[333175716,1721920241788,-500.0,0.00010958,2]
[333175718,1721920241798,-500.0,0.00010958,2]
[333175720,1721920241807,-544.42,0.00010958,2]
[333175723,1721920241817,-500.0,0.00010958,2]
[333175725,1721920241827,-500.0,0.00010958,2]
[333175727,1721920241837,-500.0,0.00010958,2]
[333175729,1721920241846,-500.0,0.00010958,2]
[333175730,1721920241855,-500.0,0.00010958,2]
[333175732,1721920241864,-500.0,0.00010958,2]
[333175734,1721920241873,-287.13058991,0.00010958,2]
[333175737,1721920241884,-500.0,0.00010958,2]
[333175738,1721920241893,-195.66441462,0.00010958,2]
[333175740,1721920241903,-500.0,0.00010958,2]
[333175742,1721920241912,-500.0,0.00010958,2]
[333175745,1721920241924,-500.0,0.00010958,2]
[333175747,1721920241933,-500.0,0.00010958,2]
[333175749,1721920241944,-500.0,0.00010958,2]
[333175751,1721920241955,-500.0,0.00010958,2]
[333175753,1721920241967,-500.0,0.00010958,2]
[333175755,1721920241976,-500.0,0.00010958,2]
[333175757,1721920241986,-500.0,0.00010958,2]
[333175759,1721920241996,-500.0,0.00010958,2]
[333175761,1721920242005,-262.02589412,0.00010958,2]
[333175763,1721920242015,-500.0,0.00010958,2]
[333175765,1721920242025,-500.0,0.00010958,2]
[333175767,1721920242036,-500.0,0.00010958,2]
[333175769,1721920242045,-500.0,0.00010958,2]
[333175771,1721920242054,-500.0,0.00010958,2]
[333175773,1721920242064,-500.0,0.00010958,2]
[333175775,1721920242074,-500.0,0.00010958,2]
[333175777,1721920242083,-500.0,0.00010958,2]
[333175779,1721920242093,-500.0,0.00010958,2]
[333175781,1721920242102,-313.06,0.00010958,2]
[333175783,1721920242111,-500.0,0.00010958,2]
[333175785,1721920242120,-500.0,0.00010958,2]
[333175787,1721920242130,-500.0,0.00010958,2]
[333175789,1721920242140,-889.32,0.00010958,2]
[333175791,1721920242149,-889.32,0.00010958,2]
[333175793,1721920242158,-889.32,0.00010958,2]
[333175795,1721920242168,-889.32,0.00010958,2]
[333175797,1721920242177,-500.0,0.00010958,2]
[333175799,1721920242187,-500.0,0.00010958,2]
[333175801,1721920242197,-500.0,0.00010958,2]
[333175803,1721920242206,-500.0,0.00010958,2]
[333175805,1721920242217,-500.0,0.00010958,2]
[333175807,1721920242226,-500.0,0.00010958,2]
[333175808,1721920242236,-500.0,0.00010958,2]
[333175810,1721920242245,-326.57625,0.00010958,2]
[333175812,1721920242255,-476.24834485,0.00010958,2]
[333175815,1721920242265,-500.0,0.00010958,2]
[333175817,1721920242274,-500.0,0.00010958,2]
[333175818,1721920242284,-500.0,0.00010958,2]
[333175820,1721920242293,-500.0,0.00010958,2]
[333175822,1721920242304,-500.0,0.00010958,2]
[333175824,1721920242315,-500.0,0.00010958,2]
[333175826,1721920242325,-378.95,0.00010958,2]
[333175829,1721920242335,-199.92907415,0.00010958,2]
[333175830,1721920242348,-500.0,0.00010958,2]
[333175833,1721920242359,-500.0,0.00010958,2]
[333175835,1721920242368,-500.0,0.00010958,2]
[333175837,1721920242378,-500.0,0.00010958,2]
[333175839,1721920242387,-500.0,0.00010958,2]
[333175841,1721920242396,-500.0,0.00010958,2]
[333175843,1721920242405,-500.0,0.00010958,2]
[333175845,1721920242415,-500.0,0.00010958,2]
[333175847,1721920242426,-322.32684108,0.00010958,2]
[333175849,1721920242436,-500.0,0.00010958,2]
[333175851,1721920242445,-449.27901062,0.00010958,2]
[333175853,1721920242455,-500.0,0.00010958,2]
[333175855,1721920242466,-500.0,0.00010958,2]
[333175857,1721920242475,-500.0,0.00010958,2]
[333175859,1721920242485,-500.0,0.00010958,2]
[333175861,1721920242494,-500.0,0.00010958,2]
[333175863,1721920242503,-500.0,0.00010958,2]
[333175865,1721920242513,-500.0,0.00010958,2]
[333175867,1721920242522,-516.84847615,0.00010958,2]
[333175868,1721920242531,-500.0,0.00010958,2]
[333175870,1721920242540,-500.0,0.00010958,2]
[333175872,1721920242550,-215.22815768,0.00010958,2]
[333175874,1721920242560,-500.0,0.00010958,2]
[333175876,1721920242570,-500.0,0.00010958,2]
[333175878,1721920242580,-500.0,0.00010958,2]
[333175880,1721920242589,-500.0,0.00010958,2]
[333175882,1721920242599,-500.0,0.00010958,2]
[333175884,1721920242609,-500.0,0.00010958,2]
[333175886,1721920242621,-500.0,0.00010958,2]
[333175888,1721920242630,-500.0,0.00010958,2]
[333175890,1721920242639,-500.0,0.00010958,2]
[333175892,1721920242649,-514.93970349,0.00010958,2]
[333175894,1721920242658,-500.0,0.00010958,2]
[333175896,1721920242668,-500.0,0.00010958,2]
[333175898,1721920242678,-500.0,0.00010958,2]
[333175900,1721920242687,-500.0,0.00010958,2]
[333175902,1721920242698,-599.38775636,0.00010958,2]
[333175904,1721920242708,-500.0,0.00010958,2]
[333175906,1721920242718,-252.52192585,0.00010958,2]
[333175908,1721920242728,-500.0,0.00010958,2]
[333175910,1721920242738,-500.0,0.00010958,2]
[333175912,1721920242747,-500.0,0.00010958,2]
[333175914,1721920242757,-520.08700085,0.00010958,2]
[333175916,1721920242766,-500.0,0.00010958,2]
[333175918,1721920242775,-500.0,0.00010958,2]
[333175920,1721920242785,-500.0,0.00010958,2]
[333175922,1721920242795,-500.0,0.00010958,2]
[333175924,1721920242805,-356.7416,0.00010958,2]
[333175926,1721920242815,-500.0,0.00010958,2]
[333175928,1721920242825,-204.2,0.00010958,2]
[333175930,1721920242835,-500.0,0.00010958,2]
[333175932,1721920242844,-443.53342186,0.00010958,2]
[333175934,1721920242853,-500.0,0.00010958,2]
[333175936,1721920242863,-500.0,0.00010958,2]
[333175938,1721920242873,-478.41280839,0.00010958,2]
[333175940,1721920242883,-500.0,0.00010958,2]
[333175942,1721920242892,-500.0,0.00010958,2]
[333175944,1721920242902,-500.0,0.00010958,2]
[333175946,1721920242911,-500.0,0.00010958,2]
[333175948,1721920242921,-154.62855513,0.00010958,2]
[333175950,1721920242930,-500.0,0.00010958,2]
[333175952,1721920242939,-500.0,0.00010958,2]
[333175954,1721920242948,-501.12569932,0.00010958,2]
[333175956,1721920242957,-500.0,0.00010958,2]
[333175958,1721920242971,-566.04592487,0.00010958,2]
[333175960,1721920242981,-500.0,0.00010958,2]
[333175962,1721920242990,-500.0,0.00010958,2]
[333175964,1721920243000,-155.71116778,0.00010958,2]
[333175966,1721920243014,-346.58,0.00010958,2]
[333175968,1721920243023,-500.0,0.00010958,2]
[333175970,1721920243034,-500.0,0.00010958,2]
[333175972,1721920243043,-500.0,0.00010958,2]
[333175974,1721920243054,-500.0,0.00010958,2]
[333175976,1721920243063,-368.88,0.00010958,2]
[333175978,1721920243073,-469.09994485,0.00010958,2]
[333175980,1721920243082,-500.0,0.00010958,2]
[333175982,1721920243091,-500.0,0.00010958,2]
[333175984,1721920243101,-500.0,0.00010958,2]
[333175986,1721920243111,-500.0,0.00010958,2]
[333175988,1721920243120,-500.0,0.00010958,2]
[333175990,1721920243129,-590.75,0.00010958,2]
[333175992,1721920243139,-582.25,0.00010958,2]
[333175994,1721920243149,-250.0,0.00010959,2]
[333175996,1721920243158,-2691.09,0.00010959,2]
[333175998,1721920243168,-150.0,0.00010959,2]
[333176000,1721920243178,-210.0,0.0001096,2]
[333176002,1721920243187,-8783.0,0.00010986,2]
[333176004,1721920243197,-2721.0,0.00010986,2]
[333176006,1721920243206,-435.0,0.00010986,2]
[333176008,1721920243219,-7140.97053567,0.0001099,2]
[333176010,1721920243228,-1280.26870552,0.0001099,2]
[333176012,1721920243238,-169.5830375,0.00010993,2]
[333176015,1721920243248,-500.0,0.00010995,2]
[333176019,1721920243257,-500.0,0.00010995,2]
[333176023,1721920243266,-500.0,0.00010995,2]
[333176027,1721920243276,-500.0,0.00010995,2]
[333176031,1721920243285,-500.0,0.00010995,2]
[333176035,1721920243296,-500.0,0.00010995,2]
[333176038,1721920243305,-500.0,0.00010995,2]
[333176041,1721920243315,-500.0,0.00010995,2]
[333176043,1721920243325,-500.0,0.00010995,2]
[333176047,1721920243335,-500.0,0.00010995,2]
[333176049,1721920243344,-500.0,0.00010995,2]
[333176052,1721920243353,-500.0,0.00010995,2]
[333176055,1721920243363,-500.0,0.00010995,2]
[333176058,1721920243373,-500.0,0.00010995,2]
[333176061,1721920243383,-434.35008783,0.00010995,2]
[333176064,1721920243393,-280.3,0.00010995,2]
[333176067,1721920243403,-500.0,0.00010995,2]
[333176070,1721920243413,-500.0,0.00010995,2]
[333176073,1721920243422,-500.0,0.00010995,2]
[333176075,1721920243432,-500.0,0.00010995,2]
[333176078,1721920243441,-500.0,0.00010995,2]
[333176081,1721920243451,-500.0,0.00010995,2]
[333176084,1721920243463,-500.0,0.00010995,2]
[333176087,1721920243472,-500.0,0.00010995,2]
[333176091,1721920243482,-500.0,0.00010995,2]
[333176094,1721920243492,-500.0,0.00010995,2]
[333176096,1721920243501,-500.0,0.00010995,2]
[333176098,1721920243511,-463.08,0.00010995,2]
[333176100,1721920243521,-500.0,0.00010995,2]
[333176103,1721920243531,-500.0,0.00010995,2]
[333176105,1721920243540,-500.0,0.00010995,2]
[333176108,1721920243550,-500.0,0.00010995,2]
[333176111,1721920243560,-500.0,0.00010995,2]
[333176113,1721920243570,-500.0,0.00010995,2]
[333176115,1721920243580,-197.30100144,0.00010995,2]
[333176117,1721920243589,-889.32,0.00010995,2]
[333176119,1721920243598,-889.32,0.00010995,2]
[333176121,1721920243608,-889.32,0.00010995,2]
[333176123,1721920243619,-889.32,0.00010995,2]
[333176125,1721920243629,-151.13527625,0.00010995,2]
[333176127,1721920243639,-500.0,0.00010995,2]
[333176129,1721920243648,-507.41333273,0.00010995,2]
[333176131,1721920243659,-510.79478251,0.00010995,2]
[333176133,1721920243670,-500.0,0.00010995,2]
[333176135,1721920243679,-500.0,0.00010995,2]
[333176137,1721920243689,-500.0,0.00010995,2]
[333176139,1721920243700,-500.0,0.00010995,2]
[333176141,1721920243712,-500.0,0.00010995,2]
[333176143,1721920243721,-462.85631896,0.00010995,2]
[333176145,1721920243731,-151.0,0.00010996,2]
[333176147,1721920243741,-303.223009,0.00010996,2]
[333176148,1721920243750,-303.223009,0.00010996,2]
[333176150,1721920243760,-447378.53777552,0.00010996,2]
[333176178,1721920244040,-635.9372998,0.00010996,2]
[333176181,1721920244052,-253.33008332,0.00010996,2]
[333176183,1721920244067,-8454.59295004,0.00010996,2]
[333176185,1721920244079,-31318.83139234,0.00010996,2]
[333176202,1721920244234,-1581.57156428,0.00010996,2]
[333176204,1721920244246,-20216.35682714,0.00010996,2]
[333176206,1721920244257,-359.58943198,0.00010996,2]
[333176208,1721920244267,-941.7172048,0.00010996,2]
[333176210,1721920244278,-8180.98956712,0.00010996,2]
[333176212,1721920244290,-343.77739134,0.00010996,2]
[333176215,1721920244314,-1967.09243348,0.00010996,2]
[333176217,1721920244326,-47344.96769656,0.00010996,2]
[333176219,1721920244338,-1878.64,0.00010996,2]
[333176222,1721920244350,-16217.0000304,0.00010996,2]
[333176224,1721920244362,-12694.96982004,0.00010996,2]
[333176226,1721920244373,-1031.00172718,0.00010996,2]
[333176228,1721920244385,-3722.64497467,0.00010996,2]
[333176231,1721920244397,-6047.89999998,0.00010996,2]
[333176233,1721920244408,-320.10297877,0.00010996,2]
[333176235,1721920244420,-1352.08206824,0.00010996,2]
[333176237,1721920244431,-1042.53380516,0.00010996,2]
[333176239,1721920244442,-1818.9,0.00010996,2]
[333176241,1721920244454,-837.74750378,0.00010996,2]
[333176244,1721920244471,-7064.78736194,0.00010996,2]
[333176246,1721920244482,-1086.34670665,0.00010996,2]
[333176248,1721920244495,-637.90034027,0.00010996,2]
[333176250,1721920244507,-1948.514717,0.00010996,2]
[333176252,1721920244518,-6202.80359208,0.00010996,2]
[333176264,1721920244627,-10290.3229,0.00010996,2]